[Event "*** Titled Tuesday 3|2 Blitz"]
[Site "Chess.com"]
[Date "2015.10.06"]
[Round "7"]
[White "zmaj23"]
[Black "lorcho"]
[Result "0-1"]
[WhiteElo "2329"]
[BlackElo "2606"]
[TimeControl "180+2"]
[EndTime "18:30:05 PDT"]
[Termination "lorcho won by resignation"]

1. e4 {[%clk 0:03:01.9]} 1... c6 {[%clk 0:03:00.8]} 2. Nc3 {[%clk 0:03:02]} 2...
g6 {[%clk 0:02:58.5]} 3. Nf3 {[%clk 0:03:02.1]} 3... d5 {[%clk 0:02:59.2]} 4. d3
{[%clk 0:02:56.1]} 4... Bg7 {[%clk 0:02:53.5]} 5. Bd2 {[%clk 0:02:52.5]} 5... d4
{[%clk 0:02:46.8]} 6. Ne2 {[%clk 0:02:50.8]} 6... e5 {[%clk 0:02:42.3]} 7. h3
{[%clk 0:02:51.7]} 7... h6 {[%clk 0:02:42.7]} 8. g4 {[%clk 0:02:51]} 8... Be6
{[%clk 0:02:43.8]} 9. Bg2 {[%clk 0:02:48.6]} 9... Nd7 {[%clk 0:02:45.2]} 10. Ng3
{[%clk 0:02:45.3]} 10... Ne7 {[%clk 0:02:46.2]} 11. Qe2 {[%clk 0:02:32.2]} 11...
a5 {[%clk 0:02:46]} 12. Nh2 {[%clk 0:02:32.3]} 12... a4 {[%clk 0:02:37.6]} 13.
a3 {[%clk 0:02:30.9]} 13... Qb6 {[%clk 0:02:37.8]} 14. O-O-O {[%clk 0:02:30.8]}
14... c5 {[%clk 0:02:37.6]} 15. f4 {[%clk 0:02:28.3]} 15... exf4 {[%clk
0:02:38.3]} 16. Bxf4 {[%clk 0:02:28.4]} 16... Nc6 {[%clk 0:02:39.3]} 17. Nf5
{[%clk 0:02:24]} 17... Be5 {[%clk 0:02:31.9]} 18. Nd6+ {[%clk 0:02:19.9]} 18...
Ke7 {[%clk 0:02:26.2]} 19. Nf5+ {[%clk 0:02:15.2]} 19... Kd8 {[%clk 0:01:58.4]}
20. Bxe5 {[%clk 0:02:09.2]} 20... Ndxe5 {[%clk 0:02:00.3]} 21. Ng3 {[%clk
0:02:02.7]} 21... Kc7 {[%clk 0:01:58.9]} 22. Nf3 {[%clk 0:02:01.2]} 22... Ra5
{[%clk 0:01:58.5]} 23. Nxe5 {[%clk 0:01:59.2]} 23... Nxe5 {[%clk 0:02:00.4]} 24.
Qf2 {[%clk 0:01:59.2]} 24... Rb5 {[%clk 0:01:59.1]} 25. Qf6 {[%clk 0:01:56.6]}
25... Nd7 {[%clk 0:01:32.1]} 26. Qxh8 {[%clk 0:01:56.3]} 26... Rxb2 {[%clk
0:01:33.4]} 27. Qxh6 {[%clk 0:01:27.5]} 27... Ra2 {[%clk 0:01:31.8]} 28. Kd2
{[%clk 0:01:25.4]} 28... c4 {[%clk 0:01:17.3]} 29. dxc4 {[%clk 0:01:20.6]} 29...
Qa5+ {[%clk 0:00:55.8]} 30. Ke2 {[%clk 0:01:19.3]} 30... Rxc2+ {[%clk
0:00:53.5]} 31. Kf1 {[%clk 0:01:20.4]} 31... Qe5 {[%clk 0:00:43.7]} 32. Ne2
{[%clk 0:01:17.7]} 32... Bxc4 {[%clk 0:00:41.7]} 33. Rd2 {[%clk 0:01:15.3]}
33... Rc3 {[%clk 0:00:11.3]} 34. Ke1 {[%clk 0:00:43.3]} 34... g5 {[%clk
0:00:10.3]} 35. Rf1 {[%clk 0:00:40.3]} 35... Nc5 {[%clk 0:00:10]} 36. Rf5 {[%clk
0:00:38.3]} 36... Qe7 {[%clk 0:00:05.7]} 37. Qxg5 {[%clk 0:00:26.1]} 37... Qxg5
{[%clk 0:00:06.2]} 38. Rxg5 {[%clk 0:00:26.9]} 38... Nd3+ {[%clk 0:00:08.1]} 39.
Kf1 {[%clk 0:00:24]} 39... Rxa3 {[%clk 0:00:07.6]} 40. Nxd4 {[%clk 0:00:09.4]}
40... Ra1+ {[%clk 0:00:07.8]} 41. Ke2 {[%clk 0:00:08.9]} 41... Ne5+ {[%clk
0:00:07.9]} 42. Ke3 {[%clk 0:00:09.6]} 42... Re1+ {[%clk 0:00:07.9]} 43. Ne2
{[%clk 0:00:09.4]} 43... f6 {[%clk 0:00:07.6]} 44. Rxe5 {[%clk 0:00:09.8]} 44...
fxe5 {[%clk 0:00:08.2]} 45. g5 {[%clk 0:00:09.4]} 45... a3 {[%clk 0:00:08.6]}
46. Rc2 {[%clk 0:00:09.3]} 46... Rxe2+ {[%clk 0:00:09.2]} 47. Rxe2 {[%clk
0:00:09.3]} 47... Bxe2 {[%clk 0:00:11.1]} 48. g6 {[%clk 0:00:04.1]} 48... a2
{[%clk 0:00:10.8]} 49. Bf1 {[%clk 0:00:03.2]} 49... Bxf1 {[%clk 0:00:10.6]} 0-1

[Event "*** Titled Tuesday 3|2 Blitz"]
[Site "Chess.com"]
[Date "2015.10.06"]
[Round "7"]
[White "ilmago"]
[Black "spirals5"]
[Result "1/2-1/2"]
[WhiteElo "1892"]
[BlackElo "2142"]
[TimeControl "180+2"]
[EndTime "18:30:26 PDT"]
[Termination "Game drawn by stalemate"]

1. e4 {[%clk 0:03:01.9]} 1... c5 {[%clk 0:02:59.7]} 2. Nf3 {[%clk 0:03:02.1]}
2... d6 {[%clk 0:03:00.3]} 3. d4 {[%clk 0:03:03.3]} 3... cxd4 {[%clk 0:03:01]}
4. Nxd4 {[%clk 0:03:04.8]} 4... Nf6 {[%clk 0:03:01.6]} 5. Nc3 {[%clk 0:03:06.3]}
5... a6 {[%clk 0:03:02.4]} 6. f3 {[%clk 0:03:06]} 6... e5 {[%clk 0:03:02.7]} 7.
Nb3 {[%clk 0:03:06]} 7... Be6 {[%clk 0:03:02.8]} 8. Be3 {[%clk 0:03:06.5]} 8...
Nbd7 {[%clk 0:03:03]} 9. Qd2 {[%clk 0:03:07.4]} 9... b5 {[%clk 0:03:03.5]} 10.
O-O-O {[%clk 0:03:05.3]} 10... Be7 {[%clk 0:02:58.9]} 11. g4 {[%clk 0:03:05.5]}
11... Nb6 {[%clk 0:02:55.5]} 12. Na5 {[%clk 0:02:54.5]} 12... Qc7 {[%clk
0:02:44.6]} 13. a3 {[%clk 0:02:46.8]} 13... O-O {[%clk 0:02:44]} 14. g5 {[%clk
0:02:44.5]} 14... Nh5 {[%clk 0:02:40.1]} 15. Nd5 {[%clk 0:02:41.9]} 15... Bxd5
{[%clk 0:02:36.3]} 16. exd5 {[%clk 0:02:42.4]} 16... Nc4 {[%clk 0:02:35.4]} 17.
Nxc4 {[%clk 0:02:38.9]} 17... bxc4 {[%clk 0:02:35.8]} 18. Rg1 {[%clk 0:02:29.1]}
18... Rfc8 {[%clk 0:02:34]} 19. Qc3 {[%clk 0:02:28.9]} 19... g6 {[%clk
0:02:25.4]} 20. Rg4 {[%clk 0:02:28.7]} 20... Nf4 {[%clk 0:02:20.3]} 21. Bxf4
{[%clk 0:02:26.9]} 21... exf4 {[%clk 0:02:21]} 22. Rd4 {[%clk 0:02:22.1]} 22...
Qb6 {[%clk 0:02:11.6]} 23. Rdxf4 {[%clk 0:02:18.6]} 23... Rab8 {[%clk
0:02:00.3]} 24. h4 {[%clk 0:02:17]} 24... Bf8 {[%clk 0:01:50.2]} 25. Rxc4 {[%clk
0:02:15.3]} 25... Rxc4 {[%clk 0:01:49.4]} 26. Rxc4 {[%clk 0:02:12.6]} 26... Qg1
{[%clk 0:01:41.3]} 27. Qe1 {[%clk 0:02:05.6]} 27... Bg7 {[%clk 0:01:34.1]} 28.
b3 {[%clk 0:02:05.9]} 28... Be5 {[%clk 0:01:25.8]} 29. Re4 {[%clk 0:02:02.1]}
29... Qc5 {[%clk 0:01:23.6]} 30. Bxa6 {[%clk 0:01:41.7]} 30... Qxa3+ {[%clk
0:01:22.3]} 31. Kd1 {[%clk 0:01:41.9]} 31... Qxa6 {[%clk 0:01:16.5]} 32. f4
{[%clk 0:01:42.8]} 32... Qa1+ {[%clk 0:01:16]} 33. Ke2 {[%clk 0:01:41.7]} 33...
Qxe1+ {[%clk 0:01:16.2]} 34. Kxe1 {[%clk 0:01:42.6]} 34... Bc3+ {[%clk
0:01:12.9]} 35. Ke2 {[%clk 0:01:43.2]} 35... Kf8 {[%clk 0:01:14.1]} 36. Rc4
{[%clk 0:01:43.1]} 36... Bb4 {[%clk 0:01:10.8]} 37. c3 {[%clk 0:01:43.9]} 37...
Bc5 {[%clk 0:01:11.7]} 38. b4 {[%clk 0:01:44.7]} 38... Bb6 {[%clk 0:01:06.7]}
39. Rc6 {[%clk 0:01:45.6]} 39... Ke7 {[%clk 0:01:07.5]} 40. c4 {[%clk
0:01:43.4]} 40... Bd8 {[%clk 0:01:07.6]} 41. c5 {[%clk 0:01:40.1]} 41... Rxb4
{[%clk 0:01:07.7]} 42. Rxd6 {[%clk 0:01:40.5]} 42... Rxf4 {[%clk 0:01:05.4]} 43.
Ra6 {[%clk 0:01:41.2]} 43... Rc4 {[%clk 0:01:03]} 44. Ra7+ {[%clk 0:01:40.3]}
44... Ke8 {[%clk 0:01:03.6]} 45. c6 {[%clk 0:01:38.8]} 45... Rc5 {[%clk
0:01:00.9]} 46. Ke3 {[%clk 0:01:39.7]} 46... Rxd5 {[%clk 0:01:01.5]} 47. c7
{[%clk 0:01:40.3]} 47... Bxc7 {[%clk 0:01:01]} 48. Rxc7 {[%clk 0:01:41.2]} 48...
Ra5 {[%clk 0:00:59.4]} 49. Rc4 {[%clk 0:01:40.8]} 49... Kf8 {[%clk 0:00:56.9]}
50. Kf4 {[%clk 0:01:40.8]} 50... Kg7 {[%clk 0:00:57.6]} 51. Rb4 {[%clk
0:01:41.8]} 51... h6 {[%clk 0:00:57.2]} 52. Kg4 {[%clk 0:01:41.6]} 52... hxg5
{[%clk 0:00:57.3]} 53. hxg5 {[%clk 0:01:42.2]} 53... Ra1 {[%clk 0:00:57.8]} 54.
Rb5 {[%clk 0:01:36.6]} 54... Ra4+ {[%clk 0:00:57.7]} 55. Kg3 {[%clk 0:01:37]}
55... Kf8 {[%clk 0:00:57.5]} 56. Kf3 {[%clk 0:01:36.6]} 56... Ke7 {[%clk
0:00:57.4]} 57. Kg3 {[%clk 0:01:37]} 57... Ke6 {[%clk 0:00:58]} 58. Kf3 {[%clk
0:01:37.9]} 58... Rc4 {[%clk 0:00:58.1]} 59. Kg3 {[%clk 0:01:36.1]} 59... Rd4
{[%clk 0:00:52.7]} 60. Rb6+ {[%clk 0:01:35.1]} 60... Kf5 {[%clk 0:00:52.6]} 61.
Rb7 {[%clk 0:01:35.8]} 61... Kxg5 {[%clk 0:00:50.2]} 62. Rxf7 {[%clk 0:01:34.7]}
62... Rd3+ {[%clk 0:00:51]} 63. Kg2 {[%clk 0:01:35]} 63... Kg4 {[%clk
0:00:51.1]} 64. Ra7 {[%clk 0:01:35.5]} 64... Rd2+ {[%clk 0:00:51.4]} 65. Kg1
{[%clk 0:01:36.5]} 65... g5 {[%clk 0:00:52.5]} 66. Ra4+ {[%clk 0:01:36.2]} 66...
Kh3 {[%clk 0:00:53.2]} 67. Ra3+ {[%clk 0:01:37.1]} 67... Kh4 {[%clk 0:00:54.1]}
68. Rb3 {[%clk 0:01:37.8]} 68... g4 {[%clk 0:00:55.1]} 69. Ra3 {[%clk
0:01:37.5]} 69... Rb2 {[%clk 0:00:55.7]} 70. Rc3 {[%clk 0:01:36.1]} 70... Ra2
{[%clk 0:00:55.7]} 71. Rb3 {[%clk 0:01:36.9]} 71... Kg5 {[%clk 0:00:55.2]} 72.
Rc3 {[%clk 0:01:37.3]} 72... Kf4 {[%clk 0:00:55]} 73. Rb3 {[%clk 0:01:38.2]}
73... Re2 {[%clk 0:00:55.1]} 74. Ra3 {[%clk 0:01:38.5]} 74... Kg5 {[%clk
0:00:54.1]} 75. Rb3 {[%clk 0:01:39.2]} 75... Kh4 {[%clk 0:00:52.5]} 76. Ra3
{[%clk 0:01:39.9]} 76... Rb2 {[%clk 0:00:50.8]} 77. Rc3 {[%clk 0:01:39.9]} 77...
Ra2 {[%clk 0:00:49]} 78. Rb3 {[%clk 0:01:40.5]} 78... g3 {[%clk 0:00:50.3]} 79.
Rb8 {[%clk 0:01:40.7]} 79... Ra5 {[%clk 0:00:47.3]} 80. Rh8+ {[%clk 0:01:40.6]}
80... Rh5 {[%clk 0:00:47.5]} 81. Rxh5+ {[%clk 0:01:41]} 81... Kxh5 {[%clk
0:00:48.3]} 82. Kg2 {[%clk 0:01:42.5]} 82... Kg4 {[%clk 0:00:49.9]} 83. Kg1
{[%clk 0:01:43.1]} 83... Kf3 {[%clk 0:00:48.8]} 84. Kf1 {[%clk 0:01:43.5]} 84...
Kf4 {[%clk 0:00:50.1]} 85. Kg2 {[%clk 0:01:43.8]} 85... Kg4 {[%clk 0:00:50.7]}
86. Kg1 {[%clk 0:01:45.2]} 86... Kh3 {[%clk 0:00:52]} 87. Kh1 {[%clk 0:01:45.7]}
87... g2+ {[%clk 0:00:53.3]} 88. Kg1 {[%clk 0:01:47.1]} 88... Kg3 {[%clk
0:00:54.6]} 1/2-1/2

[Event "*** Titled Tuesday 3|2 Blitz"]
[Site "Chess.com"]
[Date "2015.10.06"]
[Round "7"]
[White "jcibarra"]
[Black "Viaje"]
[Result "1-0"]
[WhiteElo "2493"]
[BlackElo "2212"]
[TimeControl "180+2"]
[EndTime "18:31:03 PDT"]
[Termination "jcibarra won by resignation"]

1. e4 {[%clk 0:03:01.9]} 1... c5 {[%clk 0:03:00.4]} 2. Nf3 {[%clk 0:02:54.2]}
2... d6 {[%clk 0:03:01.7]} 3. d4 {[%clk 0:02:54.8]} 3... cxd4 {[%clk 0:03:02.1]}
4. Nxd4 {[%clk 0:02:56.7]} 4... Nf6 {[%clk 0:03:03.1]} 5. Nc3 {[%clk 0:02:58]}
5... a6 {[%clk 0:03:04.5]} 6. Be3 {[%clk 0:02:59.4]} 6... e5 {[%clk 0:03:04.5]}
7. Nf3 {[%clk 0:03:00.4]} 7... Be7 {[%clk 0:03:05.5]} 8. Bc4 {[%clk 0:02:58.7]}
8... O-O {[%clk 0:03:03.8]} 9. O-O {[%clk 0:02:52.6]} 9... Qc7 {[%clk
0:03:04.7]} 10. Bb3 {[%clk 0:02:52.8]} 10... Be6 {[%clk 0:03:05.4]} 11. Qe2
{[%clk 0:02:52]} 11... Nc6 {[%clk 0:03:06.1]} 12. Bg5 {[%clk 0:02:48.5]} 12...
Rac8 {[%clk 0:03:06.9]} 13. Rfd1 {[%clk 0:02:47.7]} 13... Na5 {[%clk 0:03:05.3]}
14. Rac1 {[%clk 0:02:45.1]} 14... Nxb3 {[%clk 0:03:05.7]} 15. axb3 {[%clk
0:02:45.8]} 15... Qc6 {[%clk 0:03:00.3]} 16. Bxf6 {[%clk 0:02:44.8]} 16... Bxf6
{[%clk 0:03:01.3]} 17. Nd5 {[%clk 0:02:46.3]} 17... Bd8 {[%clk 0:03:01.8]} 18.
c3 {[%clk 0:02:45.8]} 18... f5 {[%clk 0:03:01.6]} 19. c4 {[%clk 0:02:33.6]}
19... fxe4 {[%clk 0:02:26.5]} 20. Qxe4 {[%clk 0:02:33.2]} 20... Rf7 {[%clk
0:02:18.7]} 21. Qe3 {[%clk 0:02:25.6]} 21... Bg4 {[%clk 0:02:12.8]} 22. Rd3
{[%clk 0:02:15.4]} 22... e4 {[%clk 0:02:06.2]} 23. Qxe4 {[%clk 0:02:07.4]} 23...
Bf5 {[%clk 0:02:06.4]} 24. Qe2 {[%clk 0:02:06.2]} 24... Bxd3 {[%clk 0:02:06.9]}
25. Qxd3 {[%clk 0:02:07.8]} 25... Bf6 {[%clk 0:02:05.3]} 26. h4 {[%clk 0:01:57]}
26... Qc5 {[%clk 0:01:57.6]} 27. b4 {[%clk 0:01:53.3]} 27... Qa7 {[%clk
0:01:45.9]} 28. Re1 {[%clk 0:01:50.9]} 28... b5 {[%clk 0:01:43.4]} 29. b3 {[%clk
0:01:50.9]} 29... bxc4 {[%clk 0:01:42.9]} 30. bxc4 {[%clk 0:01:52.3]} 30... Rcf8
{[%clk 0:01:37.3]} 31. Re6 {[%clk 0:01:48.4]} 31... Be5 {[%clk 0:01:32.3]} 32.
c5 {[%clk 0:01:43.2]} 32... Qd7 {[%clk 0:01:25.1]} 33. Ng5 {[%clk 0:01:43.5]}
33... g6 {[%clk 0:01:05.2]} 34. Nb6 {[%clk 0:01:37.8]} 34... Qb5 {[%clk
0:00:58.4]} 35. Qxb5 {[%clk 0:01:28.4]} 35... axb5 {[%clk 0:01:00.3]} 36. cxd6
{[%clk 0:01:29.3]} 36... Bd4 {[%clk 0:00:57.5]} 37. Nxf7 {[%clk 0:01:28.6]}
37... Bxb6 {[%clk 0:00:55.6]} 38. d7 {[%clk 0:01:21.5]} 38... Bxf2+ {[%clk
0:00:51.3]} 39. Kxf2 {[%clk 0:01:14.7]} 39... Rxf7+ {[%clk 0:00:52.8]} 40. Ke3
{[%clk 0:01:15.8]} 40... Rxd7 {[%clk 0:00:54.5]} 41. Re5 {[%clk 0:01:17]} 41...
Rb7 {[%clk 0:00:27.4]} 42. Kd4 {[%clk 0:01:17.5]} 42... Kf7 {[%clk 0:00:28.5]}
43. Kc5 {[%clk 0:01:17.9]} 43... Kf6 {[%clk 0:00:29.6]} 44. Re2 {[%clk
0:01:07.8]} 44... Kf5 {[%clk 0:00:27.4]} 45. Kc6 {[%clk 0:01:08.6]} 45... Rb8
{[%clk 0:00:27.8]} 46. Re7 {[%clk 0:01:04.4]} 46... h5 {[%clk 0:00:23.4]} 47. g3
{[%clk 0:00:57.2]} 47... Kg4 {[%clk 0:00:23.6]} 48. Re3 {[%clk 0:00:58.1]} 48...
Kh3 {[%clk 0:00:24.1]} 49. Kd6 {[%clk 0:00:45.8]} 49... Rb6+ {[%clk 0:00:22.8]}
50. Ke5 {[%clk 0:00:46]} 50... Kg4 {[%clk 0:00:21.5]} 51. Rd3 {[%clk 0:00:46.3]}
51... Ra6 {[%clk 0:00:22]} 52. Rb3 {[%clk 0:00:41.4]} 52... Rc6 {[%clk
0:00:22.5]} 53. Rd3 {[%clk 0:00:38.8]} 53... Rc4 {[%clk 0:00:23.1]} 54. Rb3
{[%clk 0:00:37]} 54... Rc6 {[%clk 0:00:21.5]} 55. Kd5 {[%clk 0:00:38.1]} 55...
Rc4 {[%clk 0:00:22.2]} 56. Ke6 {[%clk 0:00:39]} 56... Rc6+ {[%clk 0:00:23]} 57.
Ke5 {[%clk 0:00:37.6]} 57... Rc4 {[%clk 0:00:23.7]} 58. Kf6 {[%clk 0:00:38.4]}
58... Rc6+ {[%clk 0:00:24.7]} 59. Kf7 {[%clk 0:00:38.1]} 59... Rd6 {[%clk
0:00:25.8]} 60. Re3 {[%clk 0:00:38.3]} 60... Rc6 {[%clk 0:00:26.6]} 61. Rd3
{[%clk 0:00:37.1]} 61... Rb6 {[%clk 0:00:27.6]} 62. Kg7 {[%clk 0:00:34.8]} 62...
Rc6 {[%clk 0:00:28.5]} 63. Kh6 {[%clk 0:00:36.2]} 63... Rb6 {[%clk 0:00:29.5]}
64. Rd4+ {[%clk 0:00:35.6]} 64... Kf3 {[%clk 0:00:29.1]} 65. Kg5 {[%clk
0:00:36.8]} 65... Kxg3 {[%clk 0:00:30]} 66. Rd3+ {[%clk 0:00:38.1]} 66... Kf2
{[%clk 0:00:30.7]} 67. Rd5 {[%clk 0:00:38.7]} 67... Ke3 {[%clk 0:00:31.5]} 68.
Rd7 {[%clk 0:00:38]} 68... Ke4 {[%clk 0:00:32.4]} 69. Rg7 {[%clk 0:00:39]} 69...
Kd4 {[%clk 0:00:33.3]} 70. Rxg6 {[%clk 0:00:39]} 70... Rxg6+ {[%clk 0:00:35.2]}
71. Kxg6 {[%clk 0:00:40.2]} 71... Kc4 {[%clk 0:00:37.1]} 72. Kxh5 {[%clk
0:00:41.5]} 72... Kxb4 {[%clk 0:00:39]} 73. Kg4 {[%clk 0:00:40.5]} 73... Kc3
{[%clk 0:00:38.1]} 74. h5 {[%clk 0:00:41.5]} 74... b4 {[%clk 0:00:39.4]} 75. h6
{[%clk 0:00:43.4]} 75... b3 {[%clk 0:00:40.7]} 76. h7 {[%clk 0:00:45.3]} 76...
b2 {[%clk 0:00:42.1]} 77. h8=Q+ {[%clk 0:00:46.9]} 77... Kc2 {[%clk 0:00:43.1]}
78. Qc8+ {[%clk 0:00:47.5]} 78... Kb3 {[%clk 0:00:43.1]} 79. Qb7+ {[%clk
0:00:48.5]} 79... Kc2 {[%clk 0:00:44.3]} 80. Qe4+ {[%clk 0:00:48.8]} 80... Kc1
{[%clk 0:00:45.4]} 81. Qc4+ {[%clk 0:00:49.5]} 81... Kd1 {[%clk 0:00:46.5]} 82.
Qb3+ {[%clk 0:00:50.3]} 82... Kc1 {[%clk 0:00:48]} 83. Qc3+ {[%clk 0:00:51.6]}
1-0

[Event "*** Titled Tuesday 3|2 Blitz"]
[Site "Chess.com"]
[Date "2015.10.06"]
[Round "7"]
[White "Penguininja"]
[Black "Po6Don"]
[Result "1/2-1/2"]
[WhiteElo "2142"]
[BlackElo "2033"]
[TimeControl "180+2"]
[EndTime "18:31:59 PDT"]
[Termination "Game drawn - insufficient material"]

1. d4 {[%clk 0:03:01.9]} 1... d5 {[%clk 0:03:00.5]} 2. Nf3 {[%clk 0:03:03.8]}
2... Nf6 {[%clk 0:03:00.6]} 3. c4 {[%clk 0:03:00.7]} 3... c6 {[%clk 0:02:59.6]}
4. e3 {[%clk 0:03:01.2]} 4... e6 {[%clk 0:02:59.9]} 5. Nbd2 {[%clk 0:03:01.6]}
5... Nbd7 {[%clk 0:03:00.4]} 6. Bd3 {[%clk 0:03:02.7]} 6... Bd6 {[%clk
0:03:01.5]} 7. O-O {[%clk 0:03:02.1]} 7... O-O {[%clk 0:03:02.5]} 8. b3 {[%clk
0:03:02.1]} 8... e5 {[%clk 0:03:00.8]} 9. cxd5 {[%clk 0:02:59.7]} 9... cxd5
{[%clk 0:03:01.7]} 10. dxe5 {[%clk 0:02:59]} 10... Nxe5 {[%clk 0:03:02.8]} 11.
Nxe5 {[%clk 0:02:48.6]} 11... Bxe5 {[%clk 0:03:03.5]} 12. Rb1 {[%clk 0:02:49.7]}
12... Bg4 {[%clk 0:02:34]} 13. Nf3 {[%clk 0:02:38.3]} 13... Re8 {[%clk
0:02:18.4]} 14. h3 {[%clk 0:01:39.2]} 14... Bxf3 {[%clk 0:02:18.2]} 15. Qxf3
{[%clk 0:01:41.1]} 15... Ne4 {[%clk 0:02:19.8]} 16. Bxe4 {[%clk 0:01:26.7]}
16... dxe4 {[%clk 0:02:19.6]} 17. Qe2 {[%clk 0:01:25]} 17... Rc8 {[%clk
0:01:57.9]} 18. Bb2 {[%clk 0:01:23.6]} 18... Qd3 {[%clk 0:01:52.5]} 19. Qxd3
{[%clk 0:01:13.6]} 19... exd3 {[%clk 0:01:54.4]} 20. Bxe5 {[%clk 0:01:14]} 20...
Rxe5 {[%clk 0:01:55]} 21. Rfd1 {[%clk 0:01:14.6]} 21... Rd5 {[%clk 0:01:52.6]}
22. Rd2 {[%clk 0:01:14.9]} 22... Rc2 {[%clk 0:01:33.1]} 23. Rbd1 {[%clk
0:01:11.5]} 23... Rxd2 {[%clk 0:01:31.6]} 24. Rxd2 {[%clk 0:01:13.4]} 24... f5
{[%clk 0:01:32.6]} 25. f3 {[%clk 0:01:11]} 25... Kf7 {[%clk 0:01:32.1]} 26. Kf2
{[%clk 0:01:10.8]} 26... Ke6 {[%clk 0:01:29.5]} 27. e4 {[%clk 0:01:05.5]} 27...
fxe4 {[%clk 0:01:28.8]} 28. fxe4 {[%clk 0:01:07.4]} 28... Rc5 {[%clk 0:01:30]}
29. Ke3 {[%clk 0:01:05.3]} 29... Rc3 {[%clk 0:01:08.8]} 30. Rxd3 {[%clk
0:00:56.5]} 30... Rc2 {[%clk 0:01:09.7]} 31. Rd2 {[%clk 0:00:57.1]} 31... Rc3+
{[%clk 0:01:10]} 32. Kd4 {[%clk 0:00:57.9]} 32... Rg3 {[%clk 0:01:10.7]} 33. Rf2
{[%clk 0:00:55.2]} 33... h5 {[%clk 0:01:09.1]} 34. Rc2 {[%clk 0:00:38.8]} 34...
g5 {[%clk 0:01:05.5]} 35. e5 {[%clk 0:00:31.1]} 35... a5 {[%clk 0:01:02.4]} 36.
Ke4 {[%clk 0:00:21.3]} 36... a4 {[%clk 0:00:58.8]} 37. bxa4 {[%clk 0:00:17.7]}
37... g4 {[%clk 0:00:59.4]} 38. Rd2 {[%clk 0:00:15.1]} 38... gxh3 {[%clk
0:00:55.3]} 39. Rd6+ {[%clk 0:00:16.3]} 39... Ke7 {[%clk 0:00:56.8]} 40. gxh3
{[%clk 0:00:17.6]} 40... Rxh3 {[%clk 0:00:54.9]} 41. Kf5 {[%clk 0:00:19.1]}
41... Ra3 {[%clk 0:00:53.1]} 42. Rb6 {[%clk 0:00:17]} 42... Rxa4 {[%clk
0:00:43.9]} 43. Rxb7+ {[%clk 0:00:18]} 43... Ke8 {[%clk 0:00:34.2]} 44. Rb2
{[%clk 0:00:10.9]} 44... Ra6 {[%clk 0:00:30.7]} 45. Rh2 {[%clk 0:00:09.6]} 45...
h4 {[%clk 0:00:30.9]} 46. Kg4 {[%clk 0:00:09.8]} 46... Ra5 {[%clk 0:00:27.8]}
47. Re2 {[%clk 0:00:08.8]} 47... Ra4+ {[%clk 0:00:25.7]} 48. Kg5 {[%clk
0:00:09.8]} 48... Ke7 {[%clk 0:00:26.4]} 49. Kf5 {[%clk 0:00:10.7]} 49... h3
{[%clk 0:00:26.6]} 50. Rh2 {[%clk 0:00:11.6]} 50... Ra3 {[%clk 0:00:26.9]} 51.
Rb2 {[%clk 0:00:11.8]} 51... Ra6 {[%clk 0:00:22.7]} 52. Rb7+ {[%clk 0:00:12.5]}
52... Ke8 {[%clk 0:00:24]} 53. Rb2 {[%clk 0:00:11.4]} 53... Ke7 {[%clk
0:00:22.6]} 54. Rh2 {[%clk 0:00:12.5]} 54... Ra3 {[%clk 0:00:22.1]} 55. Rc2
{[%clk 0:00:09.8]} 55... Ra6 {[%clk 0:00:22]} 56. Rc7+ {[%clk 0:00:10.3]} 56...
Ke8 {[%clk 0:00:21.8]} 57. Rh7 {[%clk 0:00:05.6]} 57... Rxa2 {[%clk 0:00:16.8]}
58. Rxh3 {[%clk 0:00:04.8]} 58... Ra6 {[%clk 0:00:17]} 59. Rh7 {[%clk
0:00:05.3]} 59... Rb6 {[%clk 0:00:15.6]} 60. Ra7 {[%clk 0:00:06.5]} 60... Rc6
{[%clk 0:00:15.4]} 61. Ke4 {[%clk 0:00:07.9]} 61... Rb6 {[%clk 0:00:14.5]} 62.
Kd5 {[%clk 0:00:09.3]} 62... Rh6 {[%clk 0:00:13]} 63. Rc7 {[%clk 0:00:08.1]}
63... Kd8 {[%clk 0:00:11.5]} 64. Rg7 {[%clk 0:00:07.3]} 64... Ke8 {[%clk
0:00:10.9]} 65. Rg3 {[%clk 0:00:05.8]} 65... Ke7 {[%clk 0:00:10.7]} 66. Rg5
{[%clk 0:00:06.5]} 66... Ke8 {[%clk 0:00:10.7]} 67. e6 {[%clk 0:00:07.5]} 67...
Rh1 {[%clk 0:00:07.9]} 68. Kd6 {[%clk 0:00:05.8]} 68... Rd1+ {[%clk 0:00:08.5]}
69. Ke5 {[%clk 0:00:07.2]} 69... Re1+ {[%clk 0:00:09.6]} 70. Kf6 {[%clk
0:00:08.8]} 70... Rf1+ {[%clk 0:00:10.8]} 71. Kg6 {[%clk 0:00:10.2]} 71... Ke7
{[%clk 0:00:11.5]} 72. Re5 {[%clk 0:00:10.9]} 72... Rf6+ {[%clk 0:00:12.4]} 73.
Kg5 {[%clk 0:00:11.4]} 73... Rxe6 {[%clk 0:00:14.3]} 74. Ra5 {[%clk 0:00:13.3]}
74... Rd6 {[%clk 0:00:09.4]} 75. Ra7+ {[%clk 0:00:12.9]} 75... Rd7 {[%clk
0:00:10.3]} 76. Rxd7+ {[%clk 0:00:12.9]} 76... Kxd7 {[%clk 0:00:11.1]} 1/2-1/2